Workbook

Sheet bets
J1: Баланс | K1: =SUM(I:I) -> 645.9407561
A2: 02.01.2017 | B2: Challenger BNP Paribas Nouvelle Caledonie 2017 | C2: R32 | D2: Quentin Halys | E2: Romain Bousquet | F2: 1.01 | G2: 18.28 | H2: =100/(F2-1) -> 10000 | I2: 100
A3: 02.01.2017 | B3: Challenger BNP Paribas Nouvelle Caledonie 2017 | C3: R32 | D3: Finn Tearney | E3: Joanick Pattoua | F3: 1.01 | G3: 16.21 | H3: =100/(F3-1) -> 10000 | I3: 100
A4: 02.01.2017 | B4: Challenger BNP Paribas Nouvelle Caledonie 2017 | C4: R32 | D4: Pedja Krstin | E4: Alexander Blasco | F4: 1.02 | G4: 14.87 | H4: =100/(F4-1) -> 5000 | I4: 100
A5: 02.01.2017 | B5: Wind Energy Holding Bangkok Open I 2017 | C5: R32 | D5: Denis Istomin | E5: Congsup Congcar | F5: 1.02 | G5: 15.62 | H5: =100/(F5-1) -> 5000 | I5: 100
A6: 02.01.2017 | B6: Wind Energy Holding Bangkok Open I 2017 | C6: R32 | D6: Marius Copil | E6: Warit Sornbutnark | F6: 1.04 | G6: 11.62 | H6: =100/(F6-1) -> 2500 | I6: 100
A7: 02.01.2017 | B7: Challenger BNP Paribas Nouvelle Caledonie 2017 | C7: R32 | D7: Roberto Carballes Baena | E7: Jake Delaney | F7: 1.05 | G7: 10.5 | H7: =100/(F7-1) -> 2000 | I7: 100
A8: 02.01.2017 | B8: Wind Energy Holding Bangkok Open I 2017 | C8: R32 | D8: Cedrik-Marcel Stebe | E8: Patcharapol Kawin | F8: 1.05 | G8: 10.24 | H8: =100/(F8-1) -> 2000 | I8: 100
A9: 02.01.2017 | B9: Challenger BNP Paribas Nouvelle Caledonie 2017 | C9: R32 | D9: Adrian Mannarino | E9: Aleksandar Vukic | F9: 1.06 | G9: 9.84 | H9: =100/(F9-1) -> 1666.666667 | I9: 100
A10: 02.01.2017 | B10: Challenger BNP Paribas Nouvelle Caledonie 2017 | C10: R16 | D10: Adrian Mannarino | E10: Jose Statham | F10: 1.08 | G10: 8.4 | H10: =100/(F10-1) -> 1250 | I10: 100
A11: 02.01.2017 | B11: Challenger BNP Paribas Nouvelle Caledonie 2017 | C11: R32 | D11: Alejandro Falla | E11: Luca Margaroli | F11: 1.11 | G11: 6.77 | H11: =100/(F11-1) -> 909.0909091 | I11: 100
A12: 02.01.2017 | B12: Challenger BNP Paribas Nouvelle Caledonie 2017 | C12: R32 | D12: Jose Statham | E12: Nicolas N'Godrela | F12: 1.12 | G12: 6.34 | H12: =100/(F12-1) -> 833.3333333 | I12: 100
A13: 02.01.2017 | B13: Challenger BNP Paribas Nouvelle Caledonie 2017 | C13: F | D13: Adrian Mannarino | E13: Nikola Milojevic | F13: 1.15 | G13: 5.95 | H13: =100/(F13-1) -> 666.6666667 | I13: 100
A14: 02.01.2017 | B14: Challenger BNP Paribas Nouvelle Caledonie 2017 | C14: SF | D14: Adrian Mannarino | E14: Alejandro Falla | F14: 1.19 | G14: 5.01 | H14: =100/(F14-1) -> 526.3157895 | I14: 100
A15: 02.01.2017 | B15: Wind Energy Holding Bangkok Open I 2017 | C15: QF | D15: Janko Tipsarevic | E15: Yannick Mertens | F15: 1.23 | G15: 4.22 | H15: =100/(F15-1) -> 434.7826087 | I15: 100
A16: 02.01.2017 | B16: Wind Energy Holding Bangkok Open I 2017 | C16: R16 | D16: Marius Copil | E16: Zdenek Kolar | F16: 1.24 | G16: 4.14 | H16: =100/(F16-1) -> 416.6666667 | I16: 100
A17: 02.01.2017 | B17: Wind Energy Holding Bangkok Open I 2017 | C17: R16 | D17: Janko Tipsarevic | E17: Cedrik-Marcel Stebe | F17: 1.28 | G17: 3.77 | H17: =100/(F17-1) -> 357.1428571 | I17: 100
A18: 02.01.2017 | B18: Wind Energy Holding Bangkok Open I 2017 | C18: R16 | D18: Denis Istomin | E18: Christian Garin | F18: 1.28 | G18: 3.77 | H18: =100/(F18-1) -> 357.1428571 | I18: =H18*(-1) -> -357.1428571
A19: 02.01.2017 | B19: Challenger BNP Paribas Nouvelle Caledonie 2017 | C19: R32 | D19: Kenny De Schepper | E19: Jose Hernandez-Fernandez | F19: 1.29 | G19: 3.64 | H19: =100/(F19-1) -> 344.8275862 | I19: 100
A20: 09.01.2017 | B20: East Hotel Canberra Challenger | C20: R32 | D20: Jan-Lennard Struff | E20: Brandon Walkin | F20: 1.01 | G20: 17.81 | H20: =100/(F20-1) -> 10000 | I20: 100
A21: 09.01.2017 | B21: Wind Energy Holding Bangkok 2 Open 2017 | C21: R32 | D21: Yannick Mertens | E21: Patcharapol Kawin | F21: 1.01 | G21: 17.06 | H21: =100/(F21-1) -> 10000 | I21: 100
A22: 09.01.2017 | B22: Wind Energy Holding Bangkok 2 Open 2017 | C22: R32 | D22: Jurgen Zopp | E22: Chaleechan Tanasugarn | F22: 1.02 | G22: 15.3 | H22: =100/(F22-1) -> 5000 | I22: 100
A23: 09.01.2017 | B23: East Hotel Canberra Challenger | C23: R32 | D23: Pierre-Hugues Herbert | E23: Alexei Popyrin | F23: 1.05 | G23: 10.5 | H23: =100/(F23-1) -> 2000 | I23: 100
A24: 09.01.2017 | B24: East Hotel Canberra Challenger | C24: R16 | D24: Steve Darcis | E24: Hans Podlipnik-Castillo | F24: 1.06 | G24: 9.39 | H24: =100/(F24-1) -> 1666.666667 | I24: 100
A25: 09.01.2017 | B25: East Hotel Canberra Challenger | C25: R32 | D25: Dudi Sela | E25: Luca Margaroli | F25: 1.08 | G25: 8.03 | H25: =100/(F25-1) -> 1250 | I25: 100
A26: 09.01.2017 | B26: East Hotel Canberra Challenger | C26: R32 | D26: Renzo Olivo | E26: Jake Delaney | F26: 1.08 | G26: 8.04 | H26: =100/(F26-1) -> 1250 | I26: 100
A27: 09.01.2017 | B27: East Hotel Canberra Challenger | C27: R32 | D27: Gerald Melzer | E27: Daniel Nolan | F27: 1.09 | G27: 7.64 | H27: =100/(F27-1) -> 1111.111111 | I27: 100
A28: 09.01.2017 | B28: Wind Energy Holding Bangkok 2 Open 2017 | C28: F | D28: Janko Tipsarevic | E28: Zhe Li | F28: 1.09 | G28: 8.21 | H28: =100/(F28-1) -> 1111.111111 | I28: 100
A29: 09.01.2017 | B29: East Hotel Canberra Challenger | C29: R32 | D29: Konstantin Kravchuk | E29: Nathan Pasha | F29: 1.1 | G29: 7.22 | H29: =100/(F29-1) -> 1000 | I29: 100
A30: 09.01.2017 | B30: East Hotel Canberra Challenger | C30: R16 | D30: Dudi Sela | E30: Mats Moraing | F30: 1.1 | G30: 7.28 | H30: =100/(F30-1) -> 1000 | I30: 100
A31: 09.01.2017 | B31: Wind Energy Holding Bangkok 2 Open 2017 | C31: QF | D31: Janko Tipsarevic | E31: Axel Michon | F31: 1.1 | G31: 7.22 | H31: =100/(F31-1) -> 1000 | I31: 100
A32: 09.01.2017 | B32: Wind Energy Holding Bangkok 2 Open 2017 | C32: SF | D32: Janko Tipsarevic | E32: Daniel Altmaier | F32: 1.11 | G32: 7.38 | H32: =100/(F32-1) -> 909.0909091 | I32: 100
A33: 09.01.2017 | B33: Wind Energy Holding Bangkok 2 Open 2017 | C33: R16 | D33: Janko Tipsarevic | E33: Sadio Doumbia | F33: 1.11 | G33: 6.95 | H33: =100/(F33-1) -> 909.0909091 | I33: 100
A34: 09.01.2017 | B34: East Hotel Canberra Challenger | C34: R32 | D34: Sam Groth | E34: N Vijay Sundar Prashanth | F34: 1.13 | G34: 6.05 | H34: =100/(F34-1) -> 769.2307692 | I34: 100
A35: 09.01.2017 | B35: East Hotel Canberra Challenger | C35: R32 | D35: Carlos Berlocq | E35: Steven De Waard | F35: 1.14 | G35: 5.8 | H35: =100/(F35-1) -> 714.2857143 | I35: 100
A36: 09.01.2017 | B36: Wind Energy Holding Bangkok 2 Open 2017 | C36: R32 | D36: Shuichi Sekiguchi | E36: Phassawit Burapharitta | F36: 1.16 | G36: 5.36 | H36: =100/(F36-1) -> 625 | I36: 100
A37: 09.01.2017 | B37: East Hotel Canberra Challenger | C37: R16 | D37: Jan-Lennard Struff | E37: Andrew Harris | F37: 1.18 | G37: 5.07 | H37: =100/(F37-1) -> 555.5555556 | I37: 100
A38: 09.01.2017 | B38: East Hotel Canberra Challenger | C38: R32 | D38: Steve Darcis | E38: Corentin Moutet | F38: 1.18 | G38: 4.91 | H38: =100/(F38-1) -> 555.5555556 | I38: 100
A39: 09.01.2017 | B39: East Hotel Canberra Challenger | C39: R16 | D39: Konstantin Kravchuk | E39: Aleksandar Vukic | F39: 1.18 | G39: 4.92 | H39: =100/(F39-1) -> 555.5555556 | I39: 100
A40: 09.01.2017 | B40: East Hotel Canberra Challenger | C40: R32 | D40: Aleksandar Vukic | E40: James Frawley | F40: 1.18 | G40: 5.04 | H40: =100/(F40-1) -> 555.5555556 | I40: 100
A41: 09.01.2017 | B41: East Hotel Canberra Challenger | C41: R32 | D41: Hans Podlipnik-Castillo | E41: Calum Puttergill | F41: 1.22 | G41: 4.42 | H41: =100/(F41-1) -> 454.5454545 | I41: 100
A42: 09.01.2017 | B42: East Hotel Canberra Challenger | C42: R32 | D42: Denis Shapovalov | E42: Yusuke Watanuki | F42: 1.23 | G42: 4.24 | H42: =100/(F42-1) -> 434.7826087 | I42: 100
A43: 09.01.2017 | B43: Wind Energy Holding Bangkok 2 Open 2017 | C43: R32 | D43: Janko Tipsarevic | E43: Egor Gerasimov | F43: 1.26 | G43: 3.91 | H43: =100/(F43-1) -> 384.6153846 | I43: 100
A44: 09.01.2017 | B44: East Hotel Canberra Challenger | C44: QF | D44: Steve Darcis | E44: Denis Shapovalov | F44: 1.28 | G44: 3.75 | H44: =100/(F44-1) -> 357.1428571 | I44: 100
A45: 16.01.2017 | B45: Koblenz Open | C45: R32 | D45: Jeremy Jahn | E45: Florian Broska | F45: 1.07 | G45: 8.75 | H45: =100/(F45-1) -> 1428.571429 | I45: 100
A46: 16.01.2017 | B46: Koblenz Open | C46: R32 | D46: Teymuraz Gabashvili | E46: Benjamin Hassan | F46: 1.11 | G46: 7 | H46: =100/(F46-1) -> 909.0909091 | I46: 100
A47: 16.01.2017 | B47: Koblenz Open | C47: R32 | D47: Kenny De Schepper | E47: Filip Horansky | F47: 1.25 | G47: 4.06 | H47: =100/(F47-1) -> 400 | I47: 100
A48: 16.01.2017 | B48: Koblenz Open | C48: R16 | D48: Ruben Bemelmans | E48: Gregoire Barrere | F48: 1.25 | G48: 4.04 | H48: =100/(F48-1) -> 400 | I48: 100
A49: 16.01.2017 | B49: Koblenz Open | C49: R32 | D49: Daniel Brands | E49: Jan Choinski | F49: 1.29 | G49: 3.71 | H49: =100/(F49-1) -> 344.8275862 | I49: 100
A50: 23.01.2017 | B50: The Sportmaster Tennis Championships of Maui | C50: R32 | D50: Zhe Li | E50: Andre Ilagan | F50: 1.01 | G50: 17.06 | H50: =100/(F50-1) -> 10000 | I50: 100
A51: 23.01.2017 | B51: The Sportmaster Tennis Championships of Maui | C51: R32 | D51: Henri Laaksonen | E51: Filip Dolezel | F51: 1.06 | G51: 9.97 | H51: =100/(F51-1) -> 1666.666667 | I51: 100
A52: 23.01.2017 | B52: The Sportmaster Tennis Championships of Maui | C52: R16 | D52: Henri Laaksonen | E52: Kento Takeuchi | F52: 1.1 | G52: 7.36 | H52: =100/(F52-1) -> 1000 | I52: 100
A53: 23.01.2017 | B53: The Sportmaster Tennis Championships of Maui | C53: R32 | D53: Mackenzie McDonald | E53: Antoine Bellier | F53: 1.15 | G53: 5.58 | H53: =100/(F53-1) -> 666.6666667 | I53: 100
A54: 23.01.2017 | B54: The Sportmaster Tennis Championships of Maui | C54: SF | D54: Hyeon Chung | E54: Henri Laaksonen | F54: 1.16 | G54: 5.79 | H54: =100/(F54-1) -> 625 | I54: 100
A55: 23.01.2017 | B55: The Sportmaster Tennis Championships of Maui | C55: F | D55: Hyeon Chung | E55: Taro Daniel | F55: 1.16 | G55: 5.61 | H55: =100/(F55-1) -> 625 | I55: 100
A56: 23.01.2017 | B56: The Sportmaster Tennis Championships of Maui | C56: R32 | D56: Hyeon Chung | E56: Dennis Novikov | F56: 1.2 | G56: 4.64 | H56: =100/(F56-1) -> 500 | I56: 100
A57: 23.01.2017 | B57: The Sportmaster Tennis Championships of Maui | C57: R32 | D57: Denis Shapovalov | E57: Kento Takeuchi | F57: 1.2 | G57: 4.73 | H57: =100/(F57-1) -> 500 | I57: =H57*(-1) -> -500
A58: 23.01.2017 | B58: The Sportmaster Tennis Championships of Maui | C58: QF | D58: Hyeon Chung | E58: Michael Mmoh | F58: 1.22 | G58: 4.36 | H58: =100/(F58-1) -> 454.5454545 | I58: 100
A59: 23.01.2017 | B59: Open de Rennes | C59: R32 | D59: Grega Zemlja | E59: Evan Furness | F59: 1.23 | G59: 4.25 | H59: =100/(F59-1) -> 434.7826087 | I59: 100
A60: 23.01.2017 | B60: Open de Rennes | C60: R32 | D60: Ruben Bemelmans | E60: Mathias Bourgue | F60: 1.23 | G60: 4.3 | H60: =100/(F60-1) -> 434.7826087 | I60: =H60*(-1) -> -434.7826087
A61: 23.01.2017 | B61: The Sportmaster Tennis Championships of Maui | C61: R32 | D61: Jared Donaldson | E61: Alexander Sarkissian | F61: 1.24 | G61: 4.16 | H61: =100/(F61-1) -> 416.6666667 | I61: =H61*(-1) -> -416.6666667
A62: 23.01.2017 | B62: Open de Rennes | C62: R32 | D62: Vincent Millot | E62: Geoffrey Blancaneaux | F62: 1.26 | G62: 3.97 | H62: =100/(F62-1) -> 384.6153846 | I62: 100
A63: 23.01.2017 | B63: Open de Rennes | C63: R16 | D63: Andrey Rublev | E63: Grega Zemlja | F63: 1.26 | G63: 3.96 | H63: =100/(F63-1) -> 384.6153846 | I63: 100
A64: 23.01.2017 | B64: The Sportmaster Tennis Championships of Maui | C64: R32 | D64: Noah Rubin | E64: Ze Zhang | F64: 1.27 | G64: 3.8 | H64: =100/(F64-1) -> 370.3703704 | I64: =H64*(-1) -> -370.3703704
A65: 30.01.2017 | B65: RBC Tennis Championships of Dallas | C65: R32 | D65: Marco Trungelliti | E65: Chase Wood | F65: 1.02 | G65: 15.71 | H65: =100/(F65-1) -> 5000 | I65: 100
A66: 30.01.2017 | B66: Open BNP Paribas Banque De Bretagne | C66: R32 | D66: Adrian Mannarino | E66: Evan Furness | F66: 1.05 | G66: 10.35 | H66: =100/(F66-1) -> 2000 | I66: 100
A67: 30.01.2017 | B67: Caterpillar Burnie International | C67: R32 | D67: Christopher O'Connell | E67: James Frawley | F67: 1.06 | G67: 9.69 | H67: =100/(F67-1) -> 1666.666667 | I67: 100
A68: 30.01.2017 | B68: Open BNP Paribas Banque De Bretagne | C68: R32 | D68: Julien Benneteau | E68: Geoffrey Blancaneaux | F68: 1.11 | G68: 6.66 | H68: =100/(F68-1) -> 909.0909091 | I68: 100
A69: 30.01.2017 | B69: RBC Tennis Championships of Dallas | C69: R32 | D69: Ryan Harrison | E69: Eric Quigley | F69: 1.13 | G69: 6.3 | H69: =100/(F69-1) -> 769.2307692 | I69: 100
A70: 30.01.2017 | B70: RBC Tennis Championships of Dallas | C70: QF | D70: Ryan Harrison | E70: Marco Trungelliti | F70: 1.14 | G70: 5.92 | H70: =100/(F70-1) -> 714.2857143 | I70: 100
A71: 30.01.2017 | B71: Open BNP Paribas Banque De Bretagne | C71: R32 | D71: Peter Gojowczyk | E71: Maxime Hamou | F71: 1.15 | G71: 5.55 | H71: =100/(F71-1) -> 666.6666667 | I71: 100
A72: 30.01.2017 | B72: Open BNP Paribas Banque De Bretagne | C72: R16 | D72: Peter Gojowczyk | E72: Steven Diez | F72: 1.15 | G72: 5.72 | H72: =100/(F72-1) -> 666.6666667 | I72: 100
A73: 30.01.2017 | B73: Open BNP Paribas Banque De Bretagne | C73: R32 | D73: Jerzy Janowicz | E73: Yannik Reuter | F73: 1.18 | G73: 4.99 | H73: =100/(F73-1) -> 555.5555556 | I73: 100
A74: 30.01.2017 | B74: RBC Tennis Championships of Dallas | C74: R32 | D74: Frances Tiafoe | E74: Christian Harrison | F74: 1.19 | G74: 4.76 | H74: =100/(F74-1) -> 526.3157895 | I74: 100
A75: 30.01.2017 | B75: RBC Tennis Championships of Dallas | C75: SF | D75: Ryan Harrison | E75: Tatsuma Ito | F75: 1.19 | G75: 5.07 | H75: =100/(F75-1) -> 526.3157895 | I75: 100
A76: 30.01.2017 | B76: Open BNP Paribas Banque De Bretagne | C76: R16 | D76: Julien Benneteau | E76: Gleb Sakharov | F76: 1.2 | G76: 4.74 | H76: =100/(F76-1) -> 500 | I76: =H76*(-1) -> -500
A77: 30.01.2017 | B77: Caterpillar Burnie International | C77: R32 | D77: Alexander Bublik | E77: Yuya Kibi | F77: 1.21 | G77: 4.48 | H77: =100/(F77-1) -> 476.1904762 | I77: 100
A78: 30.01.2017 | B78: Caterpillar Burnie International | C78: R16 | D78: Noah Rubin | E78: Maverick Banes | F78: 1.21 | G78: 4.51 | H78: =100/(F78-1) -> 476.1904762 | I78: =H78*(-1) -> -476.1904762
A79: 30.01.2017 | B79: Open BNP Paribas Banque De Bretagne | C79: QF | D79: Adrian Mannarino | E79: Gleb Sakharov | F79: 1.21 | G79: 4.47 | H79: =100/(F79-1) -> 476.1904762 | I79: 100
A80: 30.01.2017 | B80: RBC Tennis Championships of Dallas | C80: R16 | D80: Frances Tiafoe | E80: Di Wu | F80: 1.21 | G80: 4.59 | H80: =100/(F80-1) -> 476.1904762 | I80: 100
A81: 30.01.2017 | B81: RBC Tennis Championships of Dallas | C81: R16 | D81: Taylor Fritz | E81: Marcos Giron | F81: 1.21 | G81: 4.54 | H81: =100/(F81-1) -> 476.1904762 | I81: 100
A82: 30.01.2017 | B82: Open BNP Paribas Banque De Bretagne | C82: R32 | D82: Quentin Halys | E82: Miljan Zekic | F82: 1.24 | G82: 4.11 | H82: =100/(F82-1) -> 416.6666667 | I82: 100
A83: 30.01.2017 | B83: RBC Tennis Championships of Dallas | C83: R16 | D83: Ryan Harrison | E83: Mackenzie McDonald | F83: 1.26 | G83: 3.91 | H83: =100/(F83-1) -> 384.6153846 | I83: 100
A84: 30.01.2017 | B84: RBC Tennis Championships of Dallas | C84: R32 | D84: Denis Kudla | E84: James McGee | F84: 1.26 | G84: 3.91 | H84: =100/(F84-1) -> 384.6153846 | I84: 100
A85: 30.01.2017 | B85: Open BNP Paribas Banque De Bretagne | C85: R16 | D85: Andrey Rublev | E85: Hugo Nys | F85: 1.27 | G85: 3.8 | H85: =100/(F85-1) -> 370.3703704 | I85: 100
A86: 30.01.2017 | B86: Open BNP Paribas Banque De Bretagne | C86: R16 | D86: Sergiy Stakhovsky | E86: Enrique Lopez-Perez | F86: 1.28 | G86: 3.71 | H86: =100/(F86-1) -> 357.1428571 | I86: 100
A87: 30.01.2017 | B87: RBC Tennis Championships of Dallas | C87: R32 | D87: Taylor Fritz | E87: Ze Zhang | F87: 1.28 | G87: 3.71 | H87: =100/(F87-1) -> 357.1428571 | I87: 100
A88: 06.02.2017 | B88: Hungarian Challenger Open | C88: R32 | D88: Jurgen Melzer | E88: Gabor Borsos | F88: 1.04 | G88: 11.62 | H88: =100/(F88-1) -> 2500 | I88: 100
A89: 06.02.2017 | B89: Hungarian Challenger Open | C89: R32 | D89: Norbert Gombos | E89: Mate Valkusz | F89: 1.08 | G89: 8.04 | H89: =100/(F89-1) -> 1250 | I89: 100
A90: 06.02.2017 | B90: Neville Smith Forest Products Launceston International | C90: R32 | D90: Alex Bolt | E90: James Frawley | F90: 1.08 | G90: 8.4 | H90: =100/(F90-1) -> 1250 | I90: 100
A91: 06.02.2017 | B91: Hungarian Challenger Open | C91: R32 | D91: Marton Fucsovics | E91: Lorenzo Giustino | F91: 1.17 | G91: 5.24 | H91: =100/(F91-1) -> 588.2352941 | I91: 100
A92: 06.02.2017 | B92: Hungarian Challenger Open | C92: R32 | D92: Marius Copil | E92: Vaclav Safranek | F92: 1.21 | G92: 4.56 | H92: =100/(F92-1) -> 476.1904762 | I92: 100
A93: 06.02.2017 | B93: Kunal Patel San Francisco Open | C93: R32 | D93: Tim Smyczek | E93: Eric Quigley | F93: 1.21 | G93: 4.48 | H93: =100/(F93-1) -> 476.1904762 | I93: =H93*(-1) -> -476.1904762
A94: 06.02.2017 | B94: Hungarian Challenger Open | C94: R16 | D94: Blaz Kavcic | E94: Yannick Maden | F94: 1.22 | G94: 4.35 | H94: =100/(F94-1) -> 454.5454545 | I94: =H94*(-1) -> -454.5454545
A95: 06.02.2017 | B95: Kunal Patel San Francisco Open | C95: R32 | D95: Taylor Fritz | E95: Ze Zhang | F95: 1.22 | G95: 4.36 | H95: =100/(F95-1) -> 454.5454545 | I95: =H95*(-1) -> -454.5454545
A96: 06.02.2017 | B96: Kunal Patel San Francisco Open | C96: R16 | D96: Frances Tiafoe | E96: Ryan Shane | F96: 1.24 | G96: 4.15 | H96: =100/(F96-1) -> 416.6666667 | I96: 100
A97: 06.02.2017 | B97: Neville Smith Forest Products Launceston International | C97: QF | D97: Mitchell Krueger | E97: Tsung-Hua Yang | F97: 1.24 | G97: 4.17 | H97: =100/(F97-1) -> 416.6666667 | I97: 100
A98: 06.02.2017 | B98: Hungarian Challenger Open | C98: R32 | D98: Edward Corrie | E98: Zsombor Piros | F98: 1.26 | G98: 3.98 | H98: =100/(F98-1) -> 384.6153846 | I98: 100
A99: 06.02.2017 | B99: Hungarian Challenger Open | C99: SF | D99: Jurgen Melzer | E99: Edward Corrie | F99: 1.26 | G99: 4.12 | H99: =100/(F99-1) -> 384.6153846 | I99: 100
A100: 06.02.2017 | B100: Kunal Patel San Francisco Open | C100: R32 | D100: Denis Kudla | E100: Raymond Sarmiento | F100: 1.26 | G100: 3.91 | H100: =100/(F100-1) -> 384.6153846 | I100: 100
A101: 06.02.2017 | B101: Kunal Patel San Francisco Open | C101: QF | D101: Henri Laaksonen | E101: Eric Quigley | F101: 1.26 | G101: 3.91 | H101: =100/(F101-1) -> 384.6153846 | I101: 100
A102: 06.02.2017 | B102: Neville Smith Forest Products Launceston International | C102: R16 | D102: Noah Rubin | E102: Bradley Mousley | F102: 1.29 | G102: 3.67 | H102: =100/(F102-1) -> 344.8275862 | I102: 100
A103: 13.02.2017 | B103: Challenger La Manche | C103: R32 | D103: Jeremy Chardy | E103: Steven Diez | F103: 1.07 | G103: 9.08 | H103: =100/(F103-1) -> 1428.571429 | I103: =H103*(-1) -> -1428.571429
A104: 13.02.2017 | B104: Challenger La Manche | C104: R16 | D104: Peter Gojowczyk | E104: Axel Michon | F104: 1.12 | G104: 6.42 | H104: =100/(F104-1) -> 833.3333333 | I104: 100
A105: 13.02.2017 | B105: Challenger La Manche | C105: R32 | D105: Peter Gojowczyk | E105: Geoffrey Blancaneaux | F105: 1.14 | G105: 5.98 | H105: =100/(F105-1) -> 714.2857143 | I105: 100
A106: 13.02.2017 | B106: Challenger La Manche | C106: R16 | D106: Julien Benneteau | E106: Adrian Menendez-Maceiras | F106: 1.17 | G106: 5.25 | H106: =100/(F106-1) -> 588.2352941 | I106: 100
A107: 13.02.2017 | B107: Tempe Challenger | C107: R16 | D107: Ernesto Escobedo | E107: Salvatore Caruso | F107: 1.18 | G107: 4.96 | H107: =100/(F107-1) -> 555.5555556 | I107: 100
A108: 13.02.2017 | B108: Tempe Challenger | C108: R32 | D108: Teymuraz Gabashvili | E108: Michael Geerts | F108: 1.24 | G108: 4.14 | H108: =100/(F108-1) -> 416.6666667 | I108: 100
A109: 13.02.2017 | B109: Challenger La Manche | C109: R32 | D109: Illya Marchenko | E109: Maxime Janvier | F109: 1.25 | G109: 4.04 | H109: =100/(F109-1) -> 400 | I109: =H109*(-1) -> -400
A110: 13.02.2017 | B110: Tempe Challenger | C110: R32 | D110: Ernesto Escobedo | E110: Ramkumar Ramanathan | F110: 1.26 | G110: 3.97 | H110: =100/(F110-1) -> 384.6153846 | I110: 100
A111: 13.02.2017 | B111: Tempe Challenger | C111: R32 | D111: Alexander Sarkissian | E111: Luke Bambridge | F111: 1.26 | G111: 3.91 | H111: =100/(F111-1) -> 384.6153846 | I111: 100
A112: 13.02.2017 | B112: Tempe Challenger | C112: R16 | D112: Marcelo Arevalo | E112: Jose Hernandez-Fernandez | F112: 1.26 | G112: 3.91 | H112: =100/(F112-1) -> 384.6153846 | I112: =H112*(-1) -> -384.6153846
A113: 13.02.2017 | B113: Challenger La Manche | C113: QF | D113: Kenny De Schepper | E113: Corentin Moutet | F113: 1.27 | G113: 3.8 | H113: =100/(F113-1) -> 370.3703704 | I113: 100
A114: 13.02.2017 | B114: Tempe Challenger | C114: R32 | D114: Akira Santillan | E114: Caio Zampieri | F114: 1.28 | G114: 3.75 | H114: =100/(F114-1) -> 357.1428571 | I114: 100
A115: 20.02.2017 | B115: Shimadzu All Japan Indoor Tennis Championships | C115: R32 | D115: Ze Zhang | E115: Kaito Uesugi | F115: 1.03 | G115: 13.89 | H115: =100/(F115-1) -> 3333.333333 | I115: 100
A116: 20.02.2017 | B116: Shimadzu All Japan Indoor Tennis Championships | C116: R32 | D116: Blaz Rola | E116: Toru Horie | F116: 1.04 | G116: 11.41 | H116: =100/(F116-1) -> 2500 | I116: 100
A117: 20.02.2017 | B117: Morelos Open | C117: R32 | D117: Adam El Mihdawy | E117: Antonio Ruiz-Rosales | F117: 1.1 | G117: 7.22 | H117: =100/(F117-1) -> 1000 | I117: 100
A118: 20.02.2017 | B118: Morelos Open | C118: R32 | D118: Alexander Bublik | E118: Juan Pablo Paz | F118: 1.1 | G118: 7.22 | H118: =100/(F118-1) -> 1000 | I118: 100
A119: 20.02.2017 | B119: Morelos Open | C119: R32 | D119: Alexander Sarkissian | E119: Federico Coria | F119: 1.11 | G119: 6.77 | H119: =100/(F119-1) -> 909.0909091 | I119: =H119*(-1) -> -909.0909091
A120: 20.02.2017 | B120: Shimadzu All Japan Indoor Tennis Championships | C120: R16 | D120: Ruben Bemelmans | E120: Yosuke Watanuki | F120: 1.11 | G120: 6.77 | H120: =100/(F120-1) -> 909.0909091 | I120: =H120*(-1) -> -909.0909091
A121: 20.02.2017 | B121: Shimadzu All Japan Indoor Tennis Championships | C121: QF | D121: Blaz Kavcic | E121: Yosuke Watanuki | F121: 1.16 | G121: 5.44 | H121: =100/(F121-1) -> 625 | I121: 100
A122: 20.02.2017 | B122: Shimadzu All Japan Indoor Tennis Championships | C122: R32 | D122: Ruben Bemelmans | E122: Blake Mott | F122: 1.17 | G122: 5.25 | H122: =100/(F122-1) -> 588.2352941 | I122: 100
A123: 20.02.2017 | B123: Bergamo | C123: R32 | D123: Andreas Seppi | E123: Yannick Hanfmann | F123: 1.21 | G123: 4.56 | H123: =100/(F123-1) -> 476.1904762 | I123: =H123*(-1) -> -476.1904762
A124: 20.02.2017 | B124: Shimadzu All Japan Indoor Tennis Championships | C124: R32 | D124: Soon Woo Kwon | E124: Jumpei Yamasaki | F124: 1.21 | G124: 4.48 | H124: =100/(F124-1) -> 476.1904762 | I124: 100
A125: 20.02.2017 | B125: Bergamo | C125: R32 | D125: Filip Krajinovic | E125: Lorenzo Giustino | F125: 1.22 | G125: 4.36 | H125: =100/(F125-1) -> 454.5454545 | I125: 100
A126: 20.02.2017 | B126: Morelos Open | C126: R16 | D126: Teymuraz Gabashvili | E126: Eduardo Struvay | F126: 1.22 | G126: 4.36 | H126: =100/(F126-1) -> 454.5454545 | I126: =H126*(-1) -> -454.5454545
A127: 20.02.2017 | B127: Bergamo | C127: R16 | D127: Jerzy Janowicz | E127: Mirza Basic | F127: 1.23 | G127: 4.25 | H127: =100/(F127-1) -> 434.7826087 | I127: 100
A128: 20.02.2017 | B128: Bergamo | C128: R32 | D128: Lukas Lacko | E128: Pedja Krstin | F128: 1.25 | G128: 4.04 | H128: =100/(F128-1) -> 400 | I128: 100
A129: 20.02.2017 | B129: Morelos Open | C129: QF | D129: Alexander Bublik | E129: Alejandro Gomez | F129: 1.25 | G129: 4.04 | H129: =100/(F129-1) -> 400 | I129: 100
A130: 20.02.2017 | B130: Morelos Open | C130: R32 | D130: Jordan Thompson | E130: Nicolas Jarry | F130: 1.25 | G130: 4.01 | H130: =100/(F130-1) -> 400 | I130: =H130*(-1) -> -400
A131: 20.02.2017 | B131: Shimadzu All Japan Indoor Tennis Championships | C131: QF | D131: Grega Zemlja | E131: Ti Chen | F131: 1.26 | G131: 3.91 | H131: =100/(F131-1) -> 384.6153846 | I131: 100
A132: 20.02.2017 | B132: Shimadzu All Japan Indoor Tennis Championships | C132: R16 | D132: Franko Skugor | E132: Ti Chen | F132: 1.26 | G132: 3.97 | H132: =100/(F132-1) -> 384.6153846 | I132: =H132*(-1) -> -384.6153846
A133: 20.02.2017 | B133: Bergamo | C133: R32 | D133: Quentin Halys | E133: Zdenek Kolar | F133: 1.27 | G133: 3.83 | H133: =100/(F133-1) -> 370.3703704 | I133: 100
A134: 20.02.2017 | B134: Morelos Open | C134: R16 | D134: Austin Krajicek | E134: Adam El Mihdawy | F134: 1.28 | G134: 3.77 | H134: =100/(F134-1) -> 357.1428571 | I134: 100
A135: 20.02.2017 | B135: Morelos Open | C135: QF | D135: Nicolas Jarry | E135: Manuel Sanchez | F135: 1.29 | G135: 3.7 | H135: =100/(F135-1) -> 344.8275862 | I135: 100
A136: 27.02.2017 | B136: Keio Challenger International Tennis Tournament | C136: R32 | D136: Yasutaka Uchiyama | E136: Kaito Uesugi | F136: 1.03 | G136: 13.1 | H136: =100/(F136-1) -> 3333.333333 | I136: =H136*(-1) -> -3333.333333
A137: 27.02.2017 | B137: Wroclaw Open 2017 | C137: R32 | D137: Paul-Henri Mathieu | E137: Kacper Zuk | F137: 1.04 | G137: 11.62 | H137: =100/(F137-1) -> 2500 | I137: 100
A138: 27.02.2017 | B138: Keio Challenger International Tennis Tournament | C138: R16 | D138: Ruben Bemelmans | E138: Kaito Uesugi | F138: 1.05 | G138: 10.98 | H138: =100/(F138-1) -> 2000 | I138: =H138*(-1) -> -2000
A139: 27.02.2017 | B139: Wroclaw Open 2017 | C139: R32 | D139: Quentin Halys | E139: Michal Dembek | F139: 1.05 | G139: 10.43 | H139: =100/(F139-1) -> 2000 | I139: 100
A140: 27.02.2017 | B140: Wroclaw Open 2017 | C140: R32 | D140: Jerzy Janowicz | E140: Marek Jaloviec | F140: 1.08 | G140: 8.18 | H140: =100/(F140-1) -> 1250 | I140: 100
A141: 27.02.2017 | B141: Wroclaw Open 2017 | C141: R32 | D141: Lukas Lacko | E141: Kevin Krawietz | F141: 1.15 | G141: 5.71 | H141: =100/(F141-1) -> 666.6666667 | I141: 100
A142: 27.02.2017 | B142: Wroclaw Open 2017 | C142: R16 | D142: Kenny De Schepper | E142: Tallon Griekspoor | F142: 1.16 | G142: 5.44 | H142: =100/(F142-1) -> 625 | I142: 100
A143: 27.02.2017 | B143: Keio Challenger International Tennis Tournament | C143: R32 | D143: Andrew Whittington | E143: Sora Fukuda | F143: 1.23 | G143: 4.23 | H143: =100/(F143-1) -> 434.7826087 | I143: 100
A144: 27.02.2017 | B144: Keio Challenger International Tennis Tournament | C144: R32 | D144: Yuichi Sugita | E144: Agustin Velotti | F144: 1.23 | G144: 4.23 | H144: =100/(F144-1) -> 434.7826087 | I144: 100
A145: 27.02.2017 | B145: Keio Challenger International Tennis Tournament | C145: R32 | D145: Takuto Niki | E145: Masato Shiga | F145: 1.23 | G145: 4.23 | H145: =100/(F145-1) -> 434.7826087 | I145: 100
A146: 27.02.2017 | B146: Wroclaw Open 2017 | C146: R32 | D146: Mirza Basic | E146: Vaclav Safranek | F146: 1.26 | G146: 3.89 | H146: =100/(F146-1) -> 384.6153846 | I146: 100
A147: 27.02.2017 | B147: Wroclaw Open 2017 | C147: QF | D147: Paul-Henri Mathieu | E147: Jonathan Eysseric | F147: 1.27 | G147: 3.84 | H147: =100/(F147-1) -> 370.3703704 | I147: 100
A148: 06.03.2017 | B148: Challenger Cachantun Open | C148: R32 | D148: Casper Ruud | E148: Matias Soto | F148: 1.04 | G148: 12.09 | H148: =100/(F148-1) -> 2500 | I148: 100
A149: 06.03.2017 | B149: 2017 Zhuhai Open | C149: R32 | D149: Yasutaka Uchiyama | E149: Rigele Te | F149: 1.07 | G149: 8.85 | H149: =100/(F149-1) -> 1428.571429 | I149: 100
A150: 06.03.2017 | B150: 2017 Zhuhai Open | C150: QF | D150: Yuki Bhambri | E150: Agustin Velotti | F150: 1.14 | G150: 5.79 | H150: =100/(F150-1) -> 714.2857143 | I150: 100
A151: 06.03.2017 | B151: Challenger Cachantun Open | C151: R32 | D151: Nicolas Jarry | E151: Juan Pablo Varillas | F151: 1.14 | G151: 5.79 | H151: =100/(F151-1) -> 714.2857143 | I151: 100
A152: 06.03.2017 | B152: Challenger Cachantun Open | C152: R32 | D152: Guido Andreozzi | E152: Hans Podlipnik-Castillo | F152: 1.15 | G152: 5.58 | H152: =100/(F152-1) -> 666.6666667 | I152: 100
A153: 06.03.2017 | B153: Challenger Cachantun Open | C153: R32 | D153: Taro Daniel | E153: Federico Coria | F153: 1.16 | G153: 5.42 | H153: =100/(F153-1) -> 625 | I153: 100
A154: 06.03.2017 | B154: 2017 Zhuhai Open | C154: R32 | D154: Evgeny Donskoy | E154: Marko Tepavac | F154: 1.17 | G154: 5.25 | H154: =100/(F154-1) -> 588.2352941 | I154: 100
A155: 06.03.2017 | B155: Challenger Cachantun Open | C155: R16 | D155: Rogerio Dutra Silva | E155: Caio Zampieri | F155: 1.17 | G155: 5.25 | H155: =100/(F155-1) -> 588.2352941 | I155: 100
A156: 06.03.2017 | B156: Challenger Cachantun Open | C156: R32 | D156: Rogerio Dutra Silva | E156: Jordi Samper-Montana | F156: 1.18 | G156: 4.93 | H156: =100/(F156-1) -> 555.5555556 | I156: 100
A157: 06.03.2017 | B157: Challenger Cachantun Open | C157: QF | D157: Rogerio Dutra Silva | E157: Christian Lindell | F157: 1.18 | G157: 4.99 | H157: =100/(F157-1) -> 555.5555556 | I157: 100
A158: 06.03.2017 | B158: Challenger Cachantun Open | C158: R16 | D158: Marco Cecchinato | E158: Christian Lindell | F158: 1.18 | G158: 4.96 | H158: =100/(F158-1) -> 555.5555556 | I158: =H158*(-1) -> -555.5555556
A159: 06.03.2017 | B159: Challenger Cachantun Open | C159: R32 | D159: Leonardo Mayer | E159: Gonzalo Lama | F159: 1.19 | G159: 4.91 | H159: =100/(F159-1) -> 526.3157895 | I159: 100
A160: 06.03.2017 | B160: 2017 Zhuhai Open | C160: R32 | D160: Blaz Kavcic | E160: Pedro Sousa | F160: 1.2 | G160: 4.67 | H160: =100/(F160-1) -> 500 | I160: 100
A161: 06.03.2017 | B161: 2017 Zhuhai Open | C161: R16 | D161: Evgeny Donskoy | E161: Yan Bai | F161: 1.23 | G161: 4.26 | H161: =100/(F161-1) -> 434.7826087 | I161: 100
A162: 06.03.2017 | B162: 2017 Zhuhai Open | C162: R32 | D162: Joris De Loore | E162: Yibing Wu | F162: 1.26 | G162: 3.9 | H162: =100/(F162-1) -> 384.6153846 | I162: 100
A163: 13.03.2017 | B163: 2017 Pingshan Open | C163: R32 | D163: Yan Bai | E163: Wei Qiang Zheng | F163: 1.05 | G163: 10.5 | H163: =100/(F163-1) -> 2000 | I163: 100
A164: 13.03.2017 | B164: Copa Ciudad De Tigre | C164: R16 | D164: Leonardo Mayer | E164: Matias Zukas | F164: 1.06 | G164: 9.97 | H164: =100/(F164-1) -> 1666.666667 | I164: 100
A165: 13.03.2017 | B165: 2017 Pingshan Open | C165: R16 | D165: Blaz Kavcic | E165: Chuhan Wang | F165: 1.1 | G165: 7.15 | H165: =100/(F165-1) -> 1000 | I165: 100
A166: 13.03.2017 | B166: 2017 Pingshan Open | C166: R32 | D166: Yuichi Sugita | E166: Zhizhen Zhang | F166: 1.1 | G166: 7.22 | H166: =100/(F166-1) -> 1000 | I166: 100
A167: 13.03.2017 | B167: Copa Ciudad De Tigre | C167: R32 | D167: Leonardo Mayer | E167: Joao Pedro Sorgi | F167: 1.1 | G167: 7.22 | H167: =100/(F167-1) -> 1000 | I167: 100
A168: 13.03.2017 | B168: Copa Ciudad De Tigre | C168: R32 | D168: Inigo Cervantes | E168: Tomas Lipovsek Puches | F168: 1.11 | G168: 7 | H168: =100/(F168-1) -> 909.0909091 | I168: =H168*(-1) -> -909.0909091
A169: 13.03.2017 | B169: 2017 Pingshan Open | C169: R32 | D169: Steven Diez | E169: Chuhan Wang | F169: 1.14 | G169: 5.8 | H169: =100/(F169-1) -> 714.2857143 | I169: =H169*(-1) -> -714.2857143
A170: 13.03.2017 | B170: Copa Ciudad De Tigre | C170: SF | D170: Taro Daniel | E170: Ruben Ramirez Hidalgo | F170: 1.16 | G170: 5.64 | H170: =100/(F170-1) -> 625 | I170: 100
A171: 13.03.2017 | B171: Copa Ciudad De Tigre | C171: R16 | D171: Carlos Berlocq | E171: Jose Hernandez-Fernandez | F171: 1.19 | G171: 4.88 | H171: =100/(F171-1) -> 526.3157895 | I171: 100
A172: 13.03.2017 | B172: Copa Ciudad De Tigre | C172: R32 | D172: Guido Andreozzi | E172: Ruben Ramirez Hidalgo | F172: 1.19 | G172: 4.79 | H172: =100/(F172-1) -> 526.3157895 | I172: =H172*(-1) -> -526.3157895
A173: 13.03.2017 | B173: Challenger Banque Nationale Drummondville | C173: R32 | D173: Quentin Halys | E173: Andrea Arnaboldi | F173: 1.2 | G173: 4.62 | H173: =100/(F173-1) -> 500 | I173: 100
A174: 13.03.2017 | B174: Challenger Banque Nationale Drummondville | C174: R16 | D174: Ruben Bemelmans | E174: Liam Broady | F174: 1.21 | G174: 4.48 | H174: =100/(F174-1) -> 476.1904762 | I174: 100
A175: 13.03.2017 | B175: Copa Ciudad De Tigre | C175: R16 | D175: Tristan Lamasine | E175: Genaro Alberto Olivieri | F175: 1.21 | G175: 4.48 | H175: =100/(F175-1) -> 476.1904762 | I175: 100
A176: 13.03.2017 | B176: 2017 BMW of Dallas Irving Tennis Classic | C176: R32 | D176: Yen-Hsun Lu | E176: James McGee | F176: 1.24 | G176: 4.14 | H176: =100/(F176-1) -> 416.6666667 | I176: 100
A177: 13.03.2017 | B177: 2017 Pingshan Open | C177: R32 | D177: Thomas Fabbiano | E177: Hiroki Moriya | F177: 1.25 | G177: 4.04 | H177: =100/(F177-1) -> 400 | I177: 100
A178: 13.03.2017 | B178: 2017 Pingshan Open | C178: R16 | D178: Yuki Bhambri | E178: Nikola Milojevic | F178: 1.25 | G178: 4.08 | H178: =100/(F178-1) -> 400 | I178: 100
A179: 13.03.2017 | B179: Copa Ciudad De Tigre | C179: R32 | D179: Christian Garin | E179: Federico Coria | F179: 1.25 | G179: 4.04 | H179: =100/(F179-1) -> 400 | I179: 100
A180: 13.03.2017 | B180: 2017 BMW of Dallas Irving Tennis Classic | C180: R32 | D180: Jeremy Chardy | E180: Renzo Olivo | F180: 1.26 | G180: 3.98 | H180: =100/(F180-1) -> 384.6153846 | I180: 100
A181: 13.03.2017 | B181: 2017 Pingshan Open | C181: R32 | D181: Evgeny Donskoy | E181: Ilya Ivashka | F181: 1.26 | G181: 3.91 | H181: =100/(F181-1) -> 384.6153846 | I181: 100
A182: 13.03.2017 | B182: Challenger Banque Nationale Drummondville | C182: R32 | D182: Ruben Bemelmans | E182: Yannik Reuter | F182: 1.26 | G182: 3.98 | H182: =100/(F182-1) -> 384.6153846 | I182: 100
A183: 13.03.2017 | B183: Copa Ciudad De Tigre | C183: SF | D183: Leonardo Mayer | E183: Tristan Lamasine | F183: 1.27 | G183: 4.03 | H183: =100/(F183-1) -> 370.3703704 | I183: 100
A184: 13.03.2017 | B184: Copa Ciudad De Tigre | C184: QF | D184: Tristan Lamasine | E184: Tomas Lipovsek Puches | F184: 1.27 | G184: 3.85 | H184: =100/(F184-1) -> 370.3703704 | I184: 100
A185: 13.03.2017 | B185: Copa Ciudad De Tigre | C185: R32 | D185: Maxime Janvier | E185: Juan Pablo Paz | F185: 1.28 | G185: 3.79 | H185: =100/(F185-1) -> 357.1428571 | I185: =H185*(-1) -> -357.1428571
A186: 13.03.2017 | B186: Challenger Banque Nationale Drummondville | C186: R32 | D186: Gleb Sakharov | E186: Filip Peliwo | F186: 1.29 | G186: 3.64 | H186: =100/(F186-1) -> 344.8275862 | I186: 100
A187: 13.03.2017 | B187: Copa Ciudad De Tigre | C187: R16 | D187: Taro Daniel | E187: Gianluigi Quinzi | F187: 1.29 | G187: 3.64 | H187: =100/(F187-1) -> 344.8275862 | I187: 100
A188: 20.03.2017 | B188: Jalisco Open Presented by Aeromexico | C188: R32 | D188: Vasek Pospisil | E188: Manuel Sanchez | F188: 1.03 | G188: 12.52 | H188: =100/(F188-1) -> 3333.333333 | I188: 100
A189: 20.03.2017 | B189: Jalisco Open Presented by Aeromexico | C189: R16 | D189: Jerzy Janowicz | E189: Federico Coria | F189: 1.07 | G189: 8.75 | H189: =100/(F189-1) -> 1428.571429 | I189: 100
A190: 20.03.2017 | B190: Jalisco Open Presented by Aeromexico | C190: R32 | D190: Mohamed Safwat | E190: Luis Patino | F190: 1.09 | G190: 7.84 | H190: =100/(F190-1) -> 1111.111111 | I190: 100
A191: 20.03.2017 | B191: 2017 International Challenger Quanzhou | C191: R32 | D191: Duckhee Lee | E191: Rigele Te | F191: 1.12 | G191: 6.57 | H191: =100/(F191-1) -> 833.3333333 | I191: 100
A192: 20.03.2017 | B192: 2017 International Challenger Quanzhou | C192: R32 | D192: Aleksandr Nedovyesov | E192: Zihao Xia | F192: 1.13 | G192: 6.05 | H192: =100/(F192-1) -> 769.2307692 | I192: 100
A193: 20.03.2017 | B193: 2017 International Challenger Quanzhou | C193: R16 | D193: Uladzimir Ignatik | E193: Shuichi Sekiguchi | F193: 1.18 | G193: 5.02 | H193: =100/(F193-1) -> 555.5555556 | I193: 100
A194: 20.03.2017 | B194: 2017 International Challenger Quanzhou | C194: R32 | D194: Steven Diez | E194: Zhizhen Zhang | F194: 1.22 | G194: 4.36 | H194: =100/(F194-1) -> 454.5454545 | I194: 100
A195: 20.03.2017 | B195: 2017 International Challenger Quanzhou | C195: QF | D195: Thomas Fabbiano | E195: Steven Diez | F195: 1.28 | G195: 3.72 | H195: =100/(F195-1) -> 357.1428571 | I195: 100
A196: 27.03.2017 | B196: Torneo Internacional Challenger Leon 2017 | C196: R32 | D196: Ernesto Escobedo | E196: Manuel Sanchez | F196: 1.08 | G196: 8.22 | H196: =100/(F196-1) -> 1250 | I196: 100
A197: 27.03.2017 | B197: Open Harmonie Mutuelle | C197: R32 | D197: Kenny De Schepper | E197: Evan Furness | F197: 1.09 | G197: 7.7 | H197: =100/(F197-1) -> 1111.111111 | I197: 100
A198: 27.03.2017 | B198: Open Harmonie Mutuelle | C198: R32 | D198: Gleb Sakharov | E198: Marc Sieber | F198: 1.18 | G198: 5 | H198: =100/(F198-1) -> 555.5555556 | I198: 100
A199: 27.03.2017 | B199: Open Harmonie Mutuelle | C199: R16 | D199: Sergiy Stakhovsky | E199: Yannik Reuter | F199: 1.19 | G199: 4.79 | H199: =100/(F199-1) -> 526.3157895 | I199: 100
A200: 27.03.2017 | B200: Torneo Internacional Challenger Leon 2017 | C200: R32 | D200: Teymuraz Gabashvili | E200: Santiago Gonzalez | F200: 1.19 | G200: 4.79 | H200: =100/(F200-1) -> 526.3157895 | I200: 100
... 405 more rows

Sheet Лист1

Sheet Лист2

Sheet Лист3
